Cogmind - Beta 13 @@@ ROGUE MODE // 2024.04.13 @ 15:58:23 Player: Sunvar Result: Destroyed by G-47 Trooper with Particle Gun Performance ------------- Evolutions (0) 0 Regions Visited (2) 400 Robots Destroyed (23) 115 Value Destroyed (619) 619 Prototype IDs (2) 40 Alien Tech Used (0) 0 Bonus (0) 0 TOTAL SCORE: 1174 Bonus ------- None Cogmind --------- Core Integrity 0/250 Matter 186/300 Energy 82/100 System Corruption 0% Temperature Cool (63) Movement Rolling (100) Location -10/Mines Parts ------- > --- POWER (1) -------- (None) > --- PROPULSION (2) --- Compact Wheel > --- UTILITY (2) ------ Medium Storage Unit > --- WEAPON (2) ------- Particle Gun Light Assault Rifle > --- INVENTORY (10) --- Ion Engine Ion Engine Aluminum Leg Aluminum Leg Improved Heat Sink Medium Matter Pod (100) Mining Laser Peak State ------------ > --- POWER ------------ Light Nuclear Core > --- PROPULSION ------- Light Treads Light Treads > --- UTILITY ---------- Small Storage Unit Medium Storage Unit > --- WEAPON ----------- Assault Rifle Light Assault Rifle > --- INVENTORY -------- Ion Engine Ion Engine Ion Engine Aluminum Leg Aluminum Leg Wheel Compact Wheel EM Pulse Gun Light Assault Rifle Grenade Launcher [Rating: 10] Favorites ----------- Power Light Nuclear Core Engine Light Ion Engine Power Core Light Nuclear Core Propulsion Light Treads Treads Light Treads Leg Aluminum Leg Wheel Compact Wheel Utility Medium Storage Unit Device Heat Sink Storage Medium Storage Unit Weapon Light Assault Rifle Energy Gun Particle Gun Ballistic Gun Light Assault Rifle Launcher Rocket Launcher Build | -11 -10 -10 ------- Run | Yrd Mat Min Slots Evolved . | . . . Power . | . . . Propulsion . | . . . Utility . | . . . Weapon . | . . . Parts Attached 19 | 6 6 7 Power 2 | 1 1 . Engine 1 | 1 . . Core 1 | . 1 . Reactor . | . . . Propulsion 5 | 2 . 3 Treads 2 | 2 . . Leg 2 | . . 2 Wheel 1 | . . 1 Hover . | . . . Flight . | . . . Utility 4 | 1 3 . Device 1 | . 1 . Storage 3 | 1 2 . Processor . | . . . Hackware . | . . . Protection . | . . . Artifact . | . . . Weapon 8 | 2 2 4 Energy Gun 1 | . . 1 Energy Cannon . | . . . Ballistic Gun 5 | 2 2 1 Ballistic Cannon . | . . . Launcher 2 | . . 2 Special Weapon . | . . . Impact Weapon . | . . . Slashing Weapon . | . . . Piercing Weapon . | . . . Special Melee Weapon . | . . . Unidentified Prototypes . | . . . Parts Lost 10 | . . 10 Power 1 | . . 1 Propulsion 4 | . . 4 Utility 1 | . . 1 Weapon 4 | . . 4 Highest Loss Streak 9 | . . 9 To Critical Strikes . | . . . Average Slot Usage (%) 91 | . 96 86 Engine 3 | . 6 . Core 8 | . 7 10 Treads 24 | . 28 21 Wheel 1 | . . 2 Device 7 | . 4 10 Storage 17 | . 20 14 Ballistic Gun 25 | . 27 21 Launcher 1 | . . 2 Naked Turns . | . . . Heaviest Build 23 | 11 23 19 Greatest Support 40 | 40 40 40 Greatest Overweight (x) 4 | . . 4 Average Overweight (x) . | . . . Largest Inventory Capacity 10 | 8 10 10 Average Capacity 9 | 7 9 10 Most Carried 10 | 6 10 10 Average Carried 8 | 5 9 9 Final Capacity 10 | 8 10 10 Final Carried 10 | 6 10 7 Class Distribution -------------------- 100% | Mutant Dominant Class ---------------- Mutant | -10/Materials Mutant | -10/Mines Resources | -11 -10 -10 ----------- Run | Yrd Mat Min Matter Collected 679 | 220 324 135 Remotely . | . . . Salvage Created 608 | . 485 123 Parts 39 | . 31 8 Haulers Intercepted . | . . . Recyclers Shooed . | . . . Parts Field Recycled . | . . . Retrieved Matter . | . . . Parts Self-Destructed . | . . . Prevented . | . . . Kills | -11 -10 -10 ------- Run | Yrd Mat Min Combat Hostiles Destroyed 22 | . 13 9 Guns 19 | . 13 6 AOE 3 | . . 3 Classes Destroyed 4 | . 3 1 Watcher 1 | . 1 . Swarmer 9 | . 3 6 Grunt 11 | . 10 1 Demolisher 2 | . . 2 Best Kill Streak 3 | . 2 3 Combat Bots Only 3 | . 2 3 Max Kills in Single Turn 1 | . 1 1 Gunslinging . | . . . Exploded 1 | . . 1 Melee . | . . . Uniques/NPCs Destroyed . | . . . Combat | -11 -10 -10 -------- Run | Yrd Mat Min Hostile Shots Fired 104 | . 53 51 Missed 25 | . 12 13 Damage Taken 1450 | . 437 1013 Core 252 | . 49 203 Absorbed by Shields . | . . . Core Remaining (%) 100 | 100 . . Volleys Fired 70 | 1 47 22 Largest 2 | 2 2 2 Hottest 85 | 40 40 85 Shots Fired 134 | 2 94 38 Gun 124 | 2 94 28 Cannon . | . . . Launcher 10 | . . 10 Special . | . . . Kinetic 121 | 2 94 25 Thermal 3 | . . 3 Explosive 10 | . . 10 Electromagnetic . | . . . Robot Hit Streak 10 | 2 10 6 Robot Miss Streak 4 | . 4 3 Penetration Max . | . . . Secondary Targets 2 | . . 2 Max Gunslinging Chain 1 | . . 1 Shots Hit Robots 77 | 2 53 22 Core Hits 47 | 1 27 19 Critical Kills 1 | . 1 . Critical Parts Destroyed . | . . . Critical Strikes 1 | . 1 . Destroy 1 | . 1 . Melee Attacks . | . . . Impact . | . . . Slashing . | . . . Piercing . | . . . Sneak Attacks . | . . . Combat Hostiles . | . . . Follow-up Attacks . | . . . Damage Inflicted 971 | 21 565 385 Guns 772 | 21 565 186 Cannons . | . . . Explosions 199 | . . 199 Melee . | . . . Ramming . | . . . Kinetic 758 | 21 565 172 Thermal 14 | . . 14 Explosive 199 | . . 199 Electromagnetic . | . . . Impact . | . . . Slashing . | . . . Piercing . | . . . Highest Corruption . | . . . Average Corruption . | . . . Corruption Purged . | . . . Corruption Blocked . | . . . Overload Shots . | . . . Overflow Damage 13 | . . 13 Projectiles . | . . . Explosions 13 | . . 13 Melee . | . . . Knockbacks . | . . . Impact . | . . . Kinetic . | . . . Secondary . | . . . Self-Inflicted Damage 52 | . . 52 Shots 3 | . . 3 Rammed . | . . . Targets Rammed . | . . . Kicked . | . . . Crushed . | . . . Highest Temperature 79 | . 20 79 Average Temperature 12 | . 7 45 Received Heat Transfer 273 | . 210 63 Siege Activations . | . . . Robots Corrupted . | . . . Combat Hostiles . | . . . Parts Fried . | . . . Impact Corruptions . | . . . Robots Melted . | . . . Combat Hostiles . | . . . Parts Melted . | . . . Heat Transferred 37 | . . 37 Parts Sabotaged . | . . . Parts Stolen . | . . . Parts Stripped . | . . . Power Chain Reactions . | . . . Alert | -11 -10 -10 ------- Run | Yrd Mat Min Peak Influence 291 | . 291 253 Initial 113 | . . 113 Average 91 | . 102 117 Maximum Alert Level 1 | . 1 1 Low Security (%) 83 | 100 88 70 Level 1 16 | . 11 29 Level 2 . | . . . Level 3 . | . . . Level 4 . | . . . Level 5 . | . . . High Security . | . . . Max Security . | . . . Squads Dispatched 3 | . 3 . Investigation 1 | . 1 . Extermination . | . . . Reinforcement 2 | . 2 . Assault . | . . . Garrison . | . . . Intercept . | . . . Searches Triggered . | . . . Construction Impeded . | . . . Haulers Reinforced . | . . . Active Scanning Responses . | . . . Cargo Convoy Interrupts . | . . . Stealth | -11 -10 -10 --------- Run | Yrd Mat Min Distress Signals 2 | . 2 . Communications Jammed . | . . . Distress Signals . | . . . Times Spotted 44 | . 27 17 Peak Tracking Total 9 | . 4 9 Tactical Retreats 3 | . 3 . Traps | -11 -10 -10 ------- Run | Yrd Mat Min Traps Triggered 2 | . 2 . Indirectly . | . . . Trap Hack Attempts . | . . . Triggered . | . . . Disarmed . | . . . Reprogrammed 6 | . 6 . Reused 1 | . 1 . Traps Extracted . | . . . Installed . | . . . Triggered 1 | . 1 . Machines | -11 -10 -10 ---------- Run | Yrd Mat Min Machines Disabled 2 | . . 2 Max in Single Turn 2 | . . 2 Machines Repaired . | . . . Machines Dismantled . | . . . Machines Sabotaged . | . . . Overloaded Fab Kills . | . . . Hacking | -11 -10 -10 --------- Run | Yrd Mat Min Machines Accessed 5 | . 5 . Terminals 3 | . 3 . Fabricators . | . . . Repair Stations 1 | . 1 . Recycling Units 1 | . 1 . Scanalyzers . | . . . Garrison Access . | . . . Total Hacks 13 | . 13 . Successful 6 | . 6 . Failed 7 | . 7 . Catastrophic 1 | . 1 . Database Lockouts . | . . . Manual 5 | . 5 . Terminals 9 | . 9 . Fabricators . | . . . Repair Stations 3 | . 3 . Recycling Units 1 | . 1 . Scanalyzers . | . . . Garrison Access . | . . . Terminal Hacks 4 | . 4 . Prototype ID Bank 1 | . 1 . Locate Traps 1 | . 1 . Reprogram Traps 1 | . 1 . Hauler Manifests 1 | . 1 . Fabricator Hacks . | . . . Repair Station Hacks 1 | . 1 . Scan Component 1 | . 1 . Recycling Unit Hacks 1 | . 1 . Report Inventory 1 | . 1 . Scanalyzer . | . . . Garrison Access Hacks . | . . . Unauthorized Hacks . | . . . Terminals . | . . . Fabricators . | . . . Repair Stations . | . . . Recycling Units . | . . . Scanalyzers . | . . . Garrison Access . | . . . Data Cores Recovered . | . . . Used . | . . . Hacking Detections 4 | . 4 . Full Trace Events . | . . . Feedback Events . | . . . Feedback Blocked . | . . . Robot Schematics Acquired . | . . . Robots Built . | . . . Authchips . | . . . Time . | . . . Total Robot Build Rating . | . . . Part Schematics Acquired . | . . . Parts Built . | . . . Authchips . | . . . Time . | . . . Total Part Build Rating . | . . . Parts Repaired . | . . . Time . | . . . Parts Recycled . | . . . Recycled Matter . | . . . Retrieved Matter . | . . . Retrieved Components . | . . . Parts Scanalyzed . | . . . Part Schematics Acquired . | . . . Parts Damaged . | . . . Bothacking | -11 -10 -10 ------------ Run | Yrd Mat Min Used RIF Installer . | . . . Robots Hacked . | . . . Non-combat . | . . . Combat . | . . . Robot Hacks Applied . | . . . Relay Couplers Released . | . . . Fabnet Peak Effective % . | . . . Robots Rewired . | . . . Allies Hacked . | . . . Hacks Repelled . | . . . Allies | -11 -10 -10 -------- Run | Yrd Mat Min Total Allies 3 | . . 3 Largest Group 3 | . . 3 Highest-Rated Group 40 | . . 40 Highest-Rated Ally 16 | . . 16 Total Orders . | . . . Ally Attacks 12 | . . 12 Total Damage 106 | . . 106 Kills 2 | . . 2 Allies Corrupted . | . . . Allies Melted . | . . . Intel | -11 -10 -10 ------- Run | Yrd Mat Min Robot Analysis Total . | . . . Derelict Logs Recovered 1 | . . 1 Drone Launches . | . . . Drone Recoveries . | . . . Exploration | -11 -10 -10 ------------- Run | Yrd Mat Min Turns Passed 2539 | 408 1183 948 Spaces Moved 1175 | 71 517 587 Core 11 | 2 . 9 Treads 1009 | 69 517 423 Legs 12 | . . 12 Wheels 143 | . . 143 Hover . | . . . Flight . | . . . Fastest Speed 50 | 50 160 100 Average Speed 152 | 156 160 145 Slowest Speed 250 | 160 160 250 Overloaded Moves . | . . . Propulsion Burnouts . | . . . Robots Hopped . | . . . Cave-ins Triggered . | . . . Exploration Rate (%) 60 | 8 79 93 Regions Visited 2 Branch Regions 1 Pre-discovered Areas 1 | . . 1 Known Exits Taken . | . . . Unknown Exits Taken 2 | 1 1 . Scrap Searched 2 | . . 2 Spaces Dug . | . . . Terrain Destroyed 51 | . . 51 Melee . | . . . Projectile . | . . . AOE 51 | . . 51 Terrain Rammed . | . . . Walls Destroyed . | . . . Machines Disabled . | . . . Actions | -11 -10 -10 --------- Run | Yrd Mat Min Total 1797 | 363 791 643 Wait 508 | 280 207 21 Move 1173 | 70 516 587 Hop . | . . . Pick Up 19 | 6 8 5 Fast Attach 8 | 6 2 . Attach 9 | . 2 7 Detach 1 | . 1 . Swap 2 | . 2 . Drop 7 | . 6 1 Fire 70 | 1 47 22 Melee . | . . . Ram . | . . . Kick . | . . . Crush . | . . . Escape Stasis . | . . . Rewire . | . . . Trap . | . . . Miscellaneous . | . . . Route ------- -11/Scrapyard -10/Materials (discovered 3 exits: [*Mat x2] / [*Min]) -10/Mines (discovered 2 exits: [*Mat x2]) History --------- Turn | Location | Event 19 | -11/Scrapyard | Discovered new exit (range 15) 409 | -11/Scrapyard | Entered Materials 410 | -10/Materials | Build established: Mutant 692 | -10/Materials | Discovered new exit (range 12) 992 | -10/Materials | Discovered new exit (range 3) 1277 | -10/Materials | Discovered new exit (range 6) 1592 | -10/Materials | Entered Mines 1690 | -10/Mines | Learned location of Zion (-7) 1734 | -10/Mines | Discovered new exit (range 6) 1965 | -10/Mines | Assisted by bots powering up and referring to "LRC-V3" 2044 | -10/Mines | Received a Rocket Launcher from a helpful Derelict 2151 | -10/Mines | Discovered new exit (range 10) 2278 | -10/Mines | Assembled infested the area 2327 | -10/Mines | Lost 3 allies 2332 | -10/Mines | Core integrity fell below 50% 2345 | -10/Mines | Core integrity fell below 20% 2379 | -10/Mines | Lost 9 parts (1p4n1u3w) 2540 | -10/Mines | Destroyed by G-47 Trooper with Particle Gun Last Messages --------------- 02394_ The unstable cave ceiling collapses. 02394_ U-05 Engineer lays Concrete. 02395_ U-05 Engineer builds a Wall. 02395_ Acquired Imp. Heat Sink. 02396_ U-05 Engineer lays Concrete. 02406_ The unstable cave ceiling collapses. 02406_ K-01 Serf collects debris. 02492_ U-05 Engineer builds a Wall. 02493_ U-05 Engineer lays Concrete. 02494_ U-05 Engineer builds a Wall. 02502_ U-05 Engineer lays Concrete. 02506_ U-05 Engineer builds a Wall. 02517_ U-05 Engineer lays Concrete. 02521_ G-34 Mercenary destroyed. 02521_ Core Extractor disabled. 02522_ U-05 Engineer lays Concrete. 02523_ U-05 Engineer builds a Wall. 02527_ U-05 Engineer lays Concrete. 02528_ Rocket Launcher destroyed. 02528_ U-05 Engineer builds a Wall. Map ----- +----------------------------------------------------+ | ????????########### #### ##????????? | | ????????# ## #????????? | | ????????????##### ## #????????? | | ???????????##### ### #????????? | | ??????????## # #### ###??????? | | ?????????## ## # # ###????? | | ?????????# " # # # # # # ####?? | | ????????# # ### ##? | | ???????# ## # #? | | ???????# ####?### ## | | ???????# ????????######## # | | ???????##?????????# # ## | | ?????############### ###### # | | ???### # #######???### ## ## | | ??## # # #### ###?##### ### ##? | | ?## # ### ###### ###### ##?# #?? | | ?# ## ## ###??# ?? | | ?# #???# ? | | ?# ###???###### | | ??# ## ## #???????? | | ??## #### # # #???????? | | ???# ## ### # # ## ##???????? | | ???## # ### #???????? | | ????###### # # ##### ###???????? | | ?????????#### ######???####?????????? | | ????????????##@ #????????????????????? | | ?????????????# ##????????????????????? | | ?????????????# #?????????????????????? | | ?????????????# #?????????????????????? | | ?????????????# #?????????????????????? | | ????????????? ??????????????????#### | | ????????????? ?????????????????## | | ????????????? ???????????????## | | ?????????????g ???????????????# | | ????????????? ???????????????# | | ????????????? ??????????????## | | ????????????? ???????????????## | | ????????????? ????????????????# | | ????????????? ###???????????????# | | ????????????? #?????????????????## | | ????????????? #??????????????????## | | ??????????????????????????????????## | | ????????????????????????????????### | | ???????????????????????????????## | | ???##############??????????????# | | ???# #??????????????# | | ???# < #??????????????# | | ???# """ #######????????## | | ???# """ %#?????????## | | ???# """ #####%#??????????#### | +----------------------------------------------------+ Best States ------------- Heat Dissipation 35 Energy Generation 14 Energy Capacity 160 Matter Stores 300 Matter Capacity 300 Sight Range 16 Terrain Scan Density 10 Evasion (%) 45 Recoil Reduction 2 Item Schematics ----------------- None Robot Schematics ------------------ None Fabricated ------------ Nothing Alien Tech Used ----------------- None Achievements -------------- None Challenges ------------ None Game ------ Seed HybridWeaponBattery Manual? 0 Play Time 00:21:29 Cumulative 18.3 hours Start 2024.04.13 @ 15:38:04 End 2024.04.13 @ 15:58:23 Sessions 1 Manual Loads 0 Difficulty Rogue Special Mode None Game No. 16 Rogue 16 Adventurer 0 Explorer 0 Win Type - Total 0 Types 0/0/0/0/0/0/0/0/0 Lore% 16 Gallery% 19 Achievement% 17 Wizard Run 0 Options --------- Layout 0 ASCII 0 Keyboard 0 Movement Numpad Keybinds 0 Fullscreen 1 Font 24/Smallcaps Map View 76x56 Zoom Use 0% Tactical HUD 1 Map Filters NONE Filters NONE Steam 1 RUN: 4a5f7806-fbdd-492f-8c42-bd1940775308